bitfinex/quotes_ETHUSD_20260106
["timestamp","ask_amount","ask_price","bid_price","bid_amount"]
[1767663192603,0.02949962,3233.6,3233.1,0.001]
[1767663193205,0.7661302,3233.7,3233.1,0.001]
[1767663193406,4.53951203,3233.9,3233.1,0.001]
[1767663193642,7.63177354,3233.9,3233.1,0.001]
[1767663193807,1.47675014,3233.8,3233.1,0.001]
[1767663195229,4.53961851,3233.8,3233.1,0.001]
[1767663195401,7.6319865,3233.8,3233.1,0.001]
[1767663195606,0.76614861,3233.7,3233.1,0.001]
[1767663196334,0.02949962,3233.6,3233.1,0.001]
[1767663196805,3.09240788,3233.8,3233.1,0.001]
[1767663197505,0.02949962,3233.7,3233.1,0.001]
[1767663197727,0.62143154,3233.6,3233.1,0.001]
[1767663198037,3.90226414,3233.9,3233.1,1.40312367]
[1767663198232,3.09226414,3233.9,3233.1,1.40312367]
[1767663198532,3.12156068,3234.1,3233.1,1.40312367]
[1767663198733,3.09206106,3234.1,3233.1,1.40312367]
[1767663198907,6.18412212,3234.1,3233.1,1.40312367]
[1767663199106,0.61841221,3234.0,3233.1,1.40312367]
[1767663199637,7.66123326,3233.9,3233.1,0.001]
[1767663199832,1.44725052,3233.8,3233.1,0.001]
[1767663200049,1.44725052,3233.6,3233.1,0.001]
[1767663200246,0.02949962,3233.5,3233.1,0.001]
[1767663200405,1.47675014,3233.5,3233.1,0.001]
[1767663201335,1.47675014,3233.5,3232.8,0.001]
[1767663201525,1.44725052,3233.3,3232.2,1.40212367]
[1767663201708,1.44725052,3233.1,3232.1,0.06936745]
[1767663202614,1.44725052,3233.1,3231.8,1.40212367]
[1767663203005,1.44725052,3233.1,3231.4,1.40212367]
[1767663203757,6.99620476,3233.0,3231.6,1.40212367]
[1767663203961,7.63345528,3233.0,3231.6,1.40212367]
[1767663204122,3.02059605,3232.9,3231.7,1.40212367]
[1767663204318,1.44725052,3232.8,3231.7,1.40212367]
[1767663204826,1.44725052,3232.8,3231.6,0.44965842]
[1767663205212,1.44725052,3232.8,3231.4,7.64377]
[1767663205640,1.57334553,3232.9,3231.4,7.64377]
[1767663205641,1.44725052,3232.6,3231.4,7.64377]
[1767663206013,1.44725052,3232.6,3231.4,6.18067]
[1767663206213,1.44725052,3232.6,3231.4,4.601421]
[1767663207046,1.44725052,3232.6,3231.4,3.054184]
[1767663207255,1.44725052,3232.4,3231.1,3.099232]
[1767663207453,1.44725052,3232.4,3231.1,0.81]
[1767663207936,3.09377223,3232.3,3231.1,3.904913]
[1767663208244,0.81,3232.4,3231.2,1.40212367]
[1767663208479,0.81,3232.4,3231.3,2.24231946]
[1767663208959,1.44725052,3233.0,3231.5,1.40212367]
[1767663209112,1.44725052,3233.0,3231.7,1.40212367]
[1767663209317,2.25725052,3233.0,3231.7,1.40212367]
[1767663209617,1.44725052,3232.9,3231.7,1.40212367]
[1767663209917,1.44725052,3232.7,3231.5,4.788]
[1767663210118,4.54064174,3232.7,3231.6,0.61901237]
[1767663210343,3.90313455,3233.0,3231.7,1.40212367]
[1767663210846,1.44725052,3232.9,3231.6,0.61901237]
[1767663211044,1.44725052,3232.9,3231.7,1.44826595]
[1767663211219,1.44725052,3232.9,3231.8,0.20672783]
[1767663212532,3.90311222,3233.0,3231.9,1.44826595]
[1767663212737,6.99622444,3233.0,3231.9,1.44826595]
[1767663213651,3.90311222,3233.0,3231.9,1.44826595]
[1767663214466,6.99622444,3233.0,3231.9,1.44826595]
[1767663214669,0.70257241,3232.9,3231.9,1.44826595]
[1767663215665,0.70257241,3232.9,3232.1,0.001]
[1767663216767,3.79585208,3232.9,3232.1,0.001]
[1767663217477,6.88913175,3232.9,3232.1,0.001]
[1767663217681,0.02949962,3232.8,3232.1,0.001]
[1767663217976,0.8228703,3232.7,3232.1,0.001]
[1767663218171,0.02949962,3232.6,3231.6,1.44639882]
[1767663218332,1.31007163,3232.6,3231.6,1.44639882]
[1767663218774,4.4036444,3232.6,3231.6,1.44639882]
[1767663218941,0.52560143,3232.5,3231.6,1.44639882]
[1767663219372,0.02949962,3232.4,3231.5,3.82806191]
[1767663219971,0.02949962,3232.4,3231.6,1.44826595]
[1767663220274,0.81,3233.0,3231.7,1.44826595]
[1767663220667,2.12007163,3233.0,3231.7,1.44826595]
[1767663220978,6.7106539,3232.9,3231.7,2.28534297]
[1767663221274,6.7106539,3232.9,3231.8,1.44826595]
[1767663221680,1.33957125,3232.8,3231.5,5.27632786]
[1767663221842,1.31007163,3232.8,3231.5,5.27632786]
[1767663222044,0.80207255,3232.7,3231.6,1.44826595]
[1767663222272,2.11214418,3232.7,3231.6,1.44826595]
[1767663222580,1.31007163,3232.6,3231.6,1.44826595]
[1767663222775,3.09358081,3232.5,3231.6,1.44826595]
[1767663223080,4.40360229,3232.6,3231.5,7.45022865]
[1767663223277,4.40360229,3232.6,3231.6,0.74502286]
[1767663224648,0.02949962,3232.5,3231.6,0.74502286]
[1767663224854,1.33957125,3232.5,3231.5,0.52763279]
[1767663225049,1.33957125,3232.5,3231.5,5.926281]
[1767663225261,0.02949962,3232.5,3231.6,1.44826595]
[1767663225582,6.18689551,3232.7,3231.7,1.44826595]
[1767663225883,7.49696714,3232.7,3231.7,1.44826595]
[1767663226087,3.09343194,3232.7,3231.7,1.44826595]
[1767663226287,6.80556038,3232.7,3231.8,1.44826595]
[1767663226460,3.09358081,3232.5,3231.4,5.27632786]
[1767663226665,0.02949962,3232.4,3231.4,5.27632786]
[1767663226871,1.33957125,3232.4,3231.4,5.27632786]
[1767663227873,1.33957125,3232.4,3231.4,3.82806191]
[1767663228077,1.31007163,3232.2,3231.4,3.82806191]
[1767663228281,1.33957125,3232.2,3231.2,6.08632786]
[1767663229182,1.33957125,3232.2,3231.2,5.27632786]
[1767663229183,3.09396367,3232.1,3231.2,5.27632786]
[1767663229352,1.31007163,3232.0,3231.7,0.001]
[1767663229553,1.619468,3232.0,3230.9,1.44826595]
[1767663230499,2.45896762,3232.0,3230.9,1.44826595]
[1767663230676,2.429468,3232.0,3230.9,1.44826595]
[1767663230875,2.45896762,3232.0,3230.9,1.44826595]
[1767663231076,2.17476113,3231.9,3230.9,1.44826595]
[1767663231282,3.09425088,3231.8,3230.9,1.44826595]
[1767663231664,6.18850176,3231.8,3230.9,1.44826595]
[1767663231864,6.18850176,3231.8,3230.6,0.81]
[1767663231865,1.31007163,3231.7,3230.6,2.25826595]
[1767663232265,1.31007163,3231.7,3230.6,1.44826595]
[1767663232490,6.18850176,3231.8,3230.6,1.44826595]
[1767663232491,2.05992897,3231.6,3230.6,1.44826595]
[1767663232792,1.31007163,3231.5,3230.6,1.44826595]
[1767663233091,2.12007163,3231.5,3230.6,1.44826595]
[1767663233260,1.31007163,3231.3,3230.2,4.96670695]
[1767663233460,1.31007163,3231.3,3230.2,1.44826595]
[1767663233665,0.74993394,3231.2,3230.2,1.44826595]
[1767663234485,0.74993394,3231.2,3230.3,1.38023942]
[1767663235374,2.14183978,3231.2,3230.3,1.38023942]
[1767663235880,1.39190584,3231.1,3230.0,1.38123942]
[1767663236194,2.20190584,3231.0,3230.0,1.38123942]
[1767663236393,2.20190584,3231.0,3230.0,1.82897965]
[1767663236763,2.20190584,3231.0,3230.1,1.38023942]
[1767663236963,2.20190584,3231.0,3230.0,0.44874023]
[1767663236964,1.39190584,3230.9,3230.0,0.001]
[1767663237172,1.61209642,3230.8,3230.0,0.001]
[1767663237377,4.70739993,3230.8,3230.0,0.001]
[1767663237868,1.39190584,3231.1,3230.0,1.38123942]
[1767663238068,1.39190584,3232.0,3230.0,1.38123942]
[1767663238394,1.39190584,3231.5,3230.0,1.33123942]
[1767663238602,0.81,3231.4,3230.0,1.33123942]
[1767663238776,2.20190584,3231.4,3230.0,1.33123942]
[1767663239096,0.22314055,3231.3,3230.0,1.33123942]
[1767663239289,1.39190584,3231.1,3230.0,1.33123942]
[1767663239468,3.09482545,3231.2,3230.1,1.38023942]
[1767663239666,0.81,3231.0,3230.1,1.38023942]
[1767663241004,0.811,3230.9,3230.3,1.2879328]
[1767663241475,3.09483579,3231.2,3230.3,1.2879328]
[1767663241680,1.14279763,3231.1,3230.3,1.2879328]
[1767663243520,1.14279763,3231.1,3230.4,1.2869328]
[1767663243706,1.36641048,3231.7,3230.4,1.2869328]
[1767663243917,7.00003742,3231.6,3230.4,1.2869328]
[1767663244080,8.3664479,3231.6,3230.4,1.2869328]
[1767663244280,0.811,3231.5,3230.4,1.2869328]
[1767663244501,0.86614441,3231.4,3230.4,1.2869328]
[1767663244692,0.83664479,3231.4,3230.4,1.2869328]
[1767663245716,3.9313235,3231.4,3230.4,1.2869328]
[1767663245917,1.36641048,3232.0,3230.5,1.2869328]
[1767663246208,0.84049962,3231.9,3230.5,1.2869328]
[1767663246391,1.3959101,3231.9,3230.5,1.2869328]
[1767663246591,0.811,3231.8,3230.5,1.2869328]
[1767663247299,0.02949962,3231.7,3230.5,1.2869328]
[1767663247615,2.17741048,3231.8,3230.7,1.2869328]
[1767663247810,3.09434662,3231.7,3230.7,1.2869328]
[1767663248582,1.36641048,3231.6,3230.7,1.2869328]
[1767663248806,1.36641048,3231.6,3230.3,0.001]
[1767663248807,1.36641048,3231.6,3230.4,1.2869328]
[1767663248979,1.36641048,3231.6,3230.5,1.2869328]
[1767663249181,1.36641048,3231.6,3230.3,1.2879328]
[1767663249182,1.3959101,3231.5,3230.3,1.2879328]
[1767663249583,1.36641048,3231.5,3230.3,1.2879328]
[1767663249795,3.0946339,3231.4,3230.3,1.2879328]
[1767663250011,0.811,3231.3,3230.3,1.2879328]
[1767663250213,0.811,3231.3,3230.4,1.72530288]
[1767663250214,0.761,3231.3,3230.4,1.72530288]
[1767663250936,0.811,3231.2,3230.5,1.2869328]
[1767663252639,0.811,3231.2,3230.6,1.3178868]
[1767663253434,1.36641048,3231.5,3230.6,1.3178868]
[1767663253639,3.93309934,3231.6,3230.6,1.31788463]
[1767663253842,0.811,3231.4,3230.7,1.2869328]
[1767663254502,0.811,3231.4,3230.6,0.48517387]
[1767663254706,0.02949962,3231.3,3230.4,1.2869328]
[1767663255445,1.3959101,3231.3,3230.3,0.001]
[1767663255741,1.3959101,3231.3,3230.1,5.11499471]
[1767663255742,1.3959101,3231.3,3229.8,1.2869328]
[1767663256721,1.36641048,3231.1,3229.8,1.2869328]
[1767663256937,1.3959101,3231.0,3229.8,1.2869328]
[1767663257250,0.811,3230.9,3229.8,1.2869328]
[1767663257412,1.58710149,3230.8,3229.8,1.2869328]
[1767663258948,3.09530442,3230.7,3229.8,1.2869328]
[1767663259333,1.36641048,3230.6,3229.5,1.2869328]
[1767663259639,1.36641048,3230.6,3229.3,1.2869328]
[1767663259818,1.36641048,3230.4,3229.3,1.2869328]
[1767663260024,1.36641048,3230.2,3229.0,1.2869328]
[1767663260747,1.36641048,3230.2,3229.1,1.2869328]
[1767663260950,4.46226308,3230.2,3229.1,1.2869328]
[1767663261433,7.55811568,3230.2,3229.1,1.2869328]
[1767663261634,0.83691157,3230.1,3229.1,1.2869328]
[1767663262837,0.83691157,3230.1,3229.1,4.38376847]
[1767663263042,0.83691157,3230.1,3229.2,1.2869328]
[1767663264251,0.811,3230.3,3229.3,1.2869328]
[1767663264550,3.90670415,3230.3,3229.3,1.2869328]
[1767663264917,1.36641048,3230.2,3229.3,1.2869328]
[1767663265142,0.811,3230.1,3229.3,1.2869328]
[1767663265535,0.811,3230.1,3229.4,0.001]
[1767663265536,2.17741048,3230.1,3229.4,0.001]
[1767663265743,0.83690557,3230.0,3229.4,0.001]
[1767663266849,2.20331605,3230.0,3229.4,0.001]
[1767663267553,1.36641048,3230.0,3229.4,0.001]
[1767663268364,0.811,3230.1,3229.4,0.001]
[1767663268522,1.36641048,3230.3,3229.4,1.2879328]
[1767663268738,0.811,3230.2,3229.4,1.2879328]
[1767663269630,3.0956877,3230.3,3229.4,1.2879328]
[1767663269957,1.43308001,3230.2,3229.4,1.2879328]
[1767663270445,0.02949962,3230.4,3229.4,1.2879328]
[1767663270647,1.36641048,3230.6,3229.5,1.2869328]
[1767663270854,4.38238193,3230.8,3229.5,1.2869328]
[1767663271044,1.28713594,3230.8,3229.7,1.39082385]
[1767663271243,3.09504488,3231.0,3229.7,1.39082385]
[1767663271244,6.19003404,3231.0,3229.7,1.39082385]
[1767663271457,1.28713594,3230.8,3229.7,1.39082385]
[1767663273432,3.09530442,3230.7,3229.7,1.39082385]
[1767663273937,4.38237679,3230.8,3229.7,1.39082385]
[1767663274136,3.09524085,3230.8,3229.7,1.39082385]
[1767663274357,0.747717,3230.9,3229.8,0.25952256]
[1767663274561,0.811,3230.9,3230.0,1.39082385]
[1767663275484,0.811,3231.2,3230.2,1.39082385]
[1767663275834,0.811,3231.2,3230.3,1.39082385]
[1767663276567,0.811,3231.2,3230.3,1.38880091]
[1767663277364,0.002,3230.9,3230.3,1.38880091]
[1767663283056,0.002,3230.9,3230.2,0.44867991]
[1767663284276,0.002,3230.9,3229.9,3.82806191]
[1767663284277,1.28713594,3230.8,3229.9,3.82806191]
[1767663284858,3.09711751,3230.9,3230.1,1.39082385]
[1767663284859,0.002,3230.9,3230.1,1.39082385]
[1767663285078,0.813,3230.9,3230.1,1.39082385]
[1767663285246,1.28713594,3230.8,3229.9,6.92407341]
[1767663285447,1.28713594,3230.8,3230.0,0.83148973]
[1767663285980,0.02949962,3230.7,3229.9,5.7097]
[1767663286147,1.28713594,3230.7,3229.9,7.26776781]
[1767663286350,3.09717171,3230.9,3230.0,4.31752385]
[1767663286643,3.09717171,3230.9,3230.1,1.39082385]
[1767663287080,3.09711825,3230.9,3230.1,1.39082385]
[1767663287386,5.21328077,3230.9,3230.1,1.39082385]
[1767663287962,2.11816252,3230.9,3230.1,1.39082385]
[1767663288158,5.21330233,3230.9,3230.1,1.39082385]
[1767663288592,5.21330233,3230.9,3229.9,6.44052]
[1767663288593,1.28713594,3230.8,3229.9,6.44052]
[1767663288959,1.28713594,3230.8,3230.0,3.36452]
[1767663289290,0.02949962,3230.7,3229.9,1.39082385]
[1767663289488,1.28713594,3230.6,3229.6,5.21888576]
[1767663289786,1.28713594,3230.6,3229.5,1.39082385]
[1767663289984,0.811,3230.5,3229.7,1.39082385]
[1767663290366,0.54048025,3230.5,3229.7,1.39082385]
[1767663290694,0.002,3230.9,3229.8,1.39082385]
[1767663290991,0.813,3230.9,3229.8,1.39082385]
[1767663291159,1.28713594,3230.8,3229.8,1.39082385]
[1767663291357,1.28713594,3230.7,3229.8,1.39082385]
[1767663291694,1.28713594,3230.4,3229.5,1.39082385]
[1767663292592,1.28713594,3230.4,3229.6,2.174787]
[1767663292768,4.59380252,3230.5,3229.7,1.39082385]
[1767663292969,1.40204381,3230.6,3229.7,1.39082385]
[1767663293295,4.49746076,3230.6,3229.7,1.39082385]
[1767663293499,0.8879902,3230.5,3229.7,1.39082385]
[1767663294689,0.8879902,3230.5,3229.8,1.31256388]
[1767663297484,1.40204381,3230.6,3229.8,1.31256388]
[1767663298095,4.49745904,3230.6,3229.8,1.31256388]
[1767663298998,1.40204381,3230.6,3229.8,1.31256388]
[1767663299299,4.49748998,3230.6,3229.8,1.31256388]
[1767663299466,1.37590782,3230.5,3229.6,3.172987]
[1767663299797,1.37590782,3230.4,3229.6,2.172987]
[1767663300292,0.02949962,3230.3,3229.5,1.31256388]
[1767663300597,1.37590782,3230.3,3229.5,1.31256388]
[1767663300894,1.37590782,3230.3,3229.6,2.783987]
[1767663301099,1.25870373,3230.9,3229.8,1.3062814]
[1767663301598,0.02949962,3230.8,3229.8,1.3062814]
[1767663301777,0.002,3230.9,3229.8,1.3062814]
[1767663302422,1.25670373,3231.4,3230.2,4.59380252]
[1767663302708,0.002,3231.6,3230.5,1.3062814]
[1767663302874,0.002,3231.6,3231.1,0.16125624]
[1767663303614,0.002,3231.6,3231.1,1.46753764]
[1767663303782,0.002,3231.6,3231.1,0.16125624]
[1767663304411,0.002,3231.6,3231.1,1.46753764]
[1767663305008,0.002,3231.6,3231.2,1.3062814]
[1767663305180,1.25870373,3231.9,3231.1,0.61751088]
[1767663305503,1.25870373,3231.9,3231.2,3.09482482]
[1767663305711,1.25870373,3231.9,3231.1,0.16125624]
[1767663305883,1.09747992,3231.9,3231.1,0.16125624]
[1767663307877,1.09747992,3231.9,3231.1,0.16027788]
[1767663308414,1.09747992,3231.9,3231.0,3.09500887]
[1767663308582,1.09747992,3231.9,3230.8,4.401481]
[1767663308583,1.09747992,3231.9,3231.1,0.30950089]
[1767663309115,1.09747992,3231.9,3231.0,3.09498555]
[1767663309613,1.09747992,3231.9,3230.8,8.22952789]
[1767663309614,1.25670373,3231.6,3230.8,3.82806191]
[1767663309908,1.25670373,3231.4,3230.8,3.82806191]
[1767663310611,1.25670373,3231.7,3230.8,5.13434331]
[1767663310782,0.002,3232.2,3231.0,1.3062814]
[1767663310986,4.35257839,3232.2,3231.0,1.3062814]
[1767663311186,1.25670373,3232.1,3231.0,1.3062814]
[1767663312309,1.25670373,3231.6,3230.9,0.51343433]
[1767663312518,1.25670373,3231.4,3230.8,3.82806191]
[1767663312692,1.19902373,3231.4,3230.8,4.2108681]
[1767663313021,0.02949962,3231.5,3230.8,4.2108681]
[1767663313482,0.02949962,3231.6,3230.8,4.2108681]
[1767663313877,0.02462962,3231.6,3230.8,4.2108681]
[1767663314317,1.25670373,3231.7,3230.8,5.5171495]
[1767663314488,0.02462962,3231.6,3230.8,5.5171495]
[1767663314810,1.25670373,3231.7,3230.8,1.68908759]
[1767663315017,4.35105579,3231.7,3230.8,1.3062814]
[1767663315387,1.25670373,3231.7,3230.8,4.40145616]
[1767663315703,4.35107529,3231.7,3231.1,0.001]
[1767663315880,0.002,3231.6,3231.1,0.001]
[1767663316712,4.59380252,3232.1,3231.1,0.001]
[1767663316713,3.09382489,3232.3,3231.1,1.3072814]
[1767663316923,0.813,3232.2,3231.3,1.3062814]
[1767663317122,1.33181582,3232.2,3231.3,1.3062814]
[1767663317496,4.42569728,3232.2,3231.3,1.3062814]
[1767663318118,5.68240101,3232.2,3231.3,1.3062814]
[1767663318738,5.66637322,3232.2,3231.3,1.3062814]
[1767663319496,5.66431322,3232.2,3231.3,1.3062814]
[1767663320726,1.25394373,3232.1,3231.3,0.44021464]
[1767663321028,1.25394373,3232.1,3231.3,3.53494431]
[1767663321195,1.25394373,3232.1,3231.3,0.44021464]
[1767663321717,1.25394373,3232.1,3231.3,3.53493243]
[1767663322022,1.25394373,3232.1,3231.4,0.37133725]
[1767663322321,1.25670373,3232.4,3231.4,0.35349324]
[1767663323325,1.25670373,3232.2,3231.4,0.35349324]
[1767663323631,1.25670373,3232.0,3231.4,0.35349324]
[1767663324008,0.02462962,3232.1,3231.4,1.65977464]
[1767663324527,1.25670373,3232.3,3231.5,1.78173147]
[1767663326607,1.25670373,3232.3,3231.5,1.3062814]
[1767663327000,0.02462962,3232.2,3231.5,1.3062814]
[1767663327204,1.25670373,3231.7,3231.1,0.001]
[1767663327626,3.0941767,3231.9,3231.1,0.001]
[1767663327824,1.25670373,3232.0,3231.1,1.3072814]
[1767663328026,0.81,3232.0,3231.3,1.3062814]
[1767663328836,0.79557499,3232.0,3231.6,0.001]
[1767663330237,3.11878476,3231.9,3231.6,0.001]
[1767663331538,3.09415514,3231.9,3231.6,0.001]
[1767663331741,0.79557499,3232.0,3231.6,0.001]
[1767663332118,0.02462962,3231.9,3231.6,0.001]
[1767663332533,3.11883844,3231.9,3231.6,0.001]
[1767663333144,3.11773844,3231.9,3231.6,0.001]
[1767663333441,3.09420882,3231.9,3231.6,0.001]
[1767663333814,2.96438374,3231.9,3231.1,0.001]
[1767663334037,4.92798806,3231.9,3231.1,0.001]
[1767663335728,1.9400747,3231.9,3231.1,0.001]
[1767663335932,7.56155538,3231.9,3231.1,0.001]
[1767663336244,7.53802576,3231.9,3231.1,0.001]
[1767663336428,1.37319826,3231.8,3231.1,0.001]
[1767663336741,1.34966864,3231.7,3231.1,0.001]
[1767663337238,1.37319826,3231.7,3231.1,0.001]
[1767663337840,1.23909065,3231.7,3231.1,0.001]
[1767663338143,1.34966864,3231.6,3231.1,0.001]
[1767663338544,3.09453814,3231.5,3231.1,0.001]
[1767663339042,1.34966864,3231.4,3230.6,1.31783386]
[1767663340045,0.81,3231.6,3231.4,0.001]
[1767663340244,0.81,3231.6,3230.7,1.31783386]
[1767663340551,0.812,3231.6,3230.9,1.31783386]
[1767663340752,0.002,3231.6,3230.9,1.31783386]
[1767663341054,0.002,3231.6,3231.0,1.31783386]
[1767663342636,3.11997283,3231.6,3231.0,1.31783386]
[1767663342849,3.11998891,3231.6,3231.0,1.31783386]
[1767663343150,0.02552962,3231.6,3231.0,1.31783386]
[1767663343445,3.11998556,3231.6,3231.0,1.31783386]
[1767663344253,0.02552962,3231.6,3231.0,1.31783386]
[1767663344556,4.46966678,3231.6,3230.7,2.12783386]
[1767663344742,4.46966678,3231.6,3230.8,0.52232134]
[1767663345052,2.16066864,3231.5,3230.5,1.31783386]
[1767663345642,0.02352962,3231.4,3230.5,1.31783386]
[1767663346040,2.16066864,3231.5,3230.5,1.31783386]
[1767663346246,0.811,3231.5,3230.7,1.31783386]
[1767663346853,0.002,3231.6,3230.8,1.31783386]
[1767663346854,3.90745458,3231.6,3230.8,1.31783386]
[1767663347057,7.00190916,3231.6,3230.8,1.31783386]
[1767663347232,7.00190916,3231.6,3230.1,5.14689577]
[1767663347233,1.37319826,3231.5,3230.1,5.14689577]
[1767663347556,1.37319826,3231.5,3230.3,1.31783386]
[1767663348540,1.34966864,3231.4,3230.1,0.001]
[1767663348758,4.61599758,3231.5,3230.1,0.001]
[1767663348759,1.34966864,3231.2,3230.1,0.001]
[1767663348959,8.3505111,3231.1,3230.2,0.59568958]
[1767663351752,1.34966864,3231.0,3230.2,0.59568958]
[1767663352057,1.34966864,3231.0,3230.3,1.31783386]
[1767663352546,3.90592123,3231.1,3230.3,1.31783386]
[1767663353347,3.09486874,3231.2,3230.3,1.31783386]
[1767663353527,7.53940612,3231.2,3230.3,1.31783386]
[1767663353931,7.53940612,3231.2,3230.5,0.001]
[1767663354161,8.37444673,3231.2,3230.5,0.001]
[1767663354356,0.02352962,3231.1,3230.5,0.001]
[1767663355062,1.3354363,3231.1,3230.5,0.001]
[1767663356069,3.09501702,3231.0,3230.5,0.001]
[1767663356366,4.40689593,3231.1,3230.5,0.001]
[1767663356842,7.50188518,3231.1,3230.5,0.001]
[1767663357653,1.3354363,3231.0,3230.5,0.001]
[1767663358629,1.31190668,3230.8,3230.1,0.001]
[1767663358830,1.3354363,3230.7,3230.1,0.001]
[1767663359132,1.3354363,3230.7,3229.5,3.82806191]
[1767663359635,1.31190668,3230.7,3229.7,1.36841979]
[1767663359835,1.31190668,3230.7,3229.6,3.09630272]
[1767663360035,1.31190668,3231.4,3230.0,3.09597523]
[1767663360258,1.31190668,3231.2,3230.1,15.526678]
[1767663360570,4.40674883,3231.2,3230.2,1.36841979]
[1767663361163,0.02352962,3231.1,3230.2,1.36841979]
[1767663362476,1.31190668,3231.2,3230.2,4.46419256]
[1767663362681,3.90567702,3231.4,3230.4,1.2877042]
[1767663363388,3.90561014,3231.5,3230.4,1.2877042]
[1767663364161,0.811,3231.5,3230.4,1.2877042]
[1767663364771,3.9055487,3231.5,3230.5,1.2877042]
[1767663366084,3.9055487,3231.5,3230.5,1.2887042]
[1767663366250,3.9055487,3231.5,3230.6,0.43842341]
[1767663366856,3.9055487,3231.5,3230.6,1.72612761]
[1767663367373,5.15261573,3231.5,3230.6,1.2877042]
[1767663367671,1.24706703,3231.4,3230.5,0.001]
[1767663367878,1.27059665,3231.3,3230.5,0.001]
[1767663372182,0.02352962,3231.3,3230.6,1.2877042]
[1767663372382,3.09468954,3231.4,3230.6,1.2877042]
[1767663372383,3.90568954,3231.4,3230.6,1.2877042]
[1767663373284,0.811,3231.4,3230.6,1.2877042]
[1767663373487,3.90568104,3231.4,3230.6,1.2877042]
[1767663375564,3.09468104,3231.4,3230.6,1.2877042]
[1767663375765,3.91961295,3231.4,3230.6,1.2877042]
[1767663376401,3.91961295,3231.4,3230.5,0.001]
[1767663376402,1.24706703,3231.3,3230.5,0.001]
[1767663376571,1.27059665,3231.3,3230.5,0.001]
[1767663377797,0.002,3231.2,3230.5,0.001]
[1767663378174,1.24906703,3231.2,3230.5,0.001]
[1767663378372,3.09492123,3231.1,3230.5,0.001]
[1767663378572,0.36522255,3231.0,3230.5,0.001]
[1767663379593,0.34169293,3231.0,3230.5,1.2887042]
[1767663379802,3.09492123,3231.1,3230.5,1.2887042]
[1767663380569,6.18966266,3231.2,3230.5,1.2887042]
[1767663380771,6.21319228,3231.2,3230.5,1.2887042]
[1767663380969,6.18966266,3231.2,3230.5,1.2887042]
[1767663381397,0.02352962,3231.1,3230.5,1.2887042]
[1767663381968,6.18966266,3231.2,3230.5,1.2887042]
[1767663382382,3.09483133,3231.2,3230.5,1.2887042]
[1767663383402,8.28642157,3231.2,3230.5,1.2887042]
[1767663383609,8.26289195,3231.2,3230.5,1.2887042]
[1767663383904,0.02352962,3231.1,3230.5,1.2887042]
[1767663384076,8.26289195,3231.2,3230.5,1.2887042]
[1767663384506,5.16806062,3231.2,3230.5,1.2887042]
[1767663384672,8.26289195,3231.2,3230.5,1.2887042]
[1767663385003,5.16806062,3231.2,3230.5,1.2887042]
[1767663385584,8.26289195,3231.2,3230.5,1.2887042]
[1767663386096,5.16806062,3231.2,3230.5,1.2887042]
[1767663386299,8.26289195,3231.2,3230.5,1.2887042]
[1767663387305,1.24906703,3231.5,3230.5,1.2887042]
[1767663387507,0.811,3231.2,3230.5,1.2887042]
[1767663387976,3.0946339,3231.4,3230.5,1.2887042]
[1767663388379,0.811,3231.4,3230.5,1.2887042]
[1767663388594,3.09657758,3231.5,3230.7,1.2877042]
[1767663388791,6.19115516,3231.5,3230.7,1.2877042]
[1767663389797,7.43822219,3231.5,3230.8,1.2887042]
[1767663389999,0.002,3231.2,3230.8,1.2887042]
[1767663390581,0.002,3231.2,3230.8,0.001]
[1767663392089,1.38442701,3231.2,3230.8,0.001]
[1767663392290,0.02352962,3231.1,3230.8,0.001]
[1767663393817,0.02352962,3231.1,3230.5,1.29848153]
[1767663394003,7.59584155,3231.1,3230.5,0.001]
[1767663394203,1.38242701,3231.0,3229.6,9.910137]
[1767663394419,1.38242701,3231.0,3229.8,1.29748153]
[1767663394715,1.38242701,3231.0,3230.0,1.29748153]
[1767663395036,1.38242701,3230.8,3230.0,1.29748153]
[1767663395324,1.40595663,3230.7,3230.0,1.29748153]
[1767663396021,1.40595663,3230.7,3229.4,7.735605]
[1767663396022,1.38242701,3230.5,3229.7,1.29748153]
[1767663397211,7.57360051,3230.5,3229.7,1.29748153]
[1767663398294,4.47801376,3230.5,3229.7,1.29748153]
[1767663398494,7.57360051,3230.5,3229.7,1.29748153]
[1767663399421,1.38242701,3230.4,3229.7,1.29748153]
[1767663399719,0.75736005,3230.3,3229.7,1.29748153]
[1767663399894,2.13978706,3230.3,3229.5,1.29748153]
[1767663400098,1.38242701,3230.3,3229.5,1.29748153]
[1767663400331,6.1911735,3230.5,3229.5,1.29748153]
[1767663400630,1.38242701,3230.3,3229.5,1.29748153]
[1767663400827,4.59651714,3230.6,3229.5,1.29748153]
[1767663400995,0.811,3230.5,3229.5,1.29748153]
[1767663401194,0.811,3230.5,3229.7,1.29748153]
[1767663401391,3.09559187,3230.4,3229.7,1.29748153]
[1767663401832,3.90653769,3230.5,3229.7,1.29748153]
[1767663402122,0.75961823,3230.7,3229.9,1.29748153]
[1767663402319,5.97894415,3231.1,3230.1,1.29748153]
[1767663402508,0.59809442,3231.0,3230.1,1.29748153]
[1767663402709,7.59912846,3231.0,3230.1,1.29748153]
[1767663403420,3.90572967,3231.3,3230.1,1.29748153]
[1767663403628,3.90572967,3231.3,3230.2,1.29748153]
[1767663403931,0.811,3231.3,3230.3,1.29748153]
[1767663404424,0.02552962,3231.2,3230.3,1.29748153]
[1767663406030,3.09492123,3231.1,3230.3,1.29748153]
[1767663406323,0.02352962,3231.0,3230.3,1.29748153]
[1767663408328,3.11861559,3231.0,3230.3,1.29748153]
[1767663408823,4.5010426,3231.0,3230.3,1.29748153]
[1767663410427,7.59612857,3231.0,3230.3,1.29748153]
[1767663410611,0.75961286,3230.9,3230.3,1.29748153]
[1767663410806,0.02352962,3230.8,3230.3,1.29748153]
[1767663412127,0.02352962,3230.8,3229.8,0.001]
[1767663412330,1.40595663,3230.8,3229.9,1.29748153]
[1767663412628,4.50124535,3230.8,3229.9,1.29748153]
[1767663412933,0.02352962,3230.8,3230.0,1.29748153]
[1767663413126,3.09684492,3231.2,3230.2,1.29748153]
[1767663413427,7.57411685,3231.2,3230.2,1.29748153]
[1767663413631,5.97894415,3230.8,3229.9,1.29748153]
[1767663413938,0.62142404,3230.7,3229.9,1.29748153]
[1767663414136,1.40595663,3230.7,3229.9,1.29748153]
[1767663414914,1.40595663,3230.7,3230.0,0.001]
[1767663414915,4.41769916,3230.6,3230.0,0.001]
[1767663415136,0.02352962,3230.5,3230.0,0.001]
[1767663415329,0.02552962,3230.5,3230.0,0.001]
[1767663415839,0.02552962,3230.5,3230.0,1.31072127]